[Event "3rd Gujarat GM Open 2022"]
[Site "Ahmedabad"]
[Date "2022.04.02"]
[Round "3.11"]
[White "Vignesh N R"]
[Black "Sahu, Sekhar Chandra"]
[Result "1-0"]
[ECO "B52"]
[WhiteElo "2444"]
[BlackElo "2049"]
[Annotator "TA"]
[PlyCount "63"]
[EventDate "2022.03.31"]
[EventType "swiss"]
[EventCountry "IND"]
[SourceTitle "playchess.com"]
[Source "ChessBase"]
[SourceQuality "1"]
[TimeControl "5400+30"]

{[%evp 19,63,31,27,31,31,21,27,0,45,35,33,33,30,14,52,31,96,95,120,89,84,95,417,431,420,430,559,539,780,766,766,754,1120,1037,1212,1405,1995,1940,5010,4409,29983,29984,29989,29990,29990,29991]} 1. e4 {[%emt 1:31:00]} c5 {[%emt 1:31:00]} 2. Nf3 {[%emt 0:00:30]} d6 {[%emt 0:00:30]} 3. Bb5+ {[%emt 0:00:30]} Bd7 {[%emt 0:00:30]} 4. Bxd7+ {[%emt 0:00:30]} Qxd7 {[%emt 0:00:30]} 5. c4 {[%emt 0:00:30]} Nc6 {[%emt 0:00:30]} 6. Nc3 {[%emt 0:00:30]} Nf6 {[%emt 0:00:30]} 7. d4 {[%emt 0:00:30]} cxd4 {[%emt 0:00:30]} 8. Nxd4 {[%emt 0:00:30]} g6 {[%emt 0:00:30]} 9. f3 {[%emt 0:00:30]} Nxd4 {[%emt 0:00:30]} 10. Qxd4 {[%emt 0:00:30]} Bg7 {[%emt 0:00:30]} 11. Be3 {[%emt 0:00:30] B52: Sicilian: Moscow Variation with 3...Bd7.} O-O {[%emt 0:00:30][%cal Of6g4]} 12. Qd3 {[%emt 0:00:30]} Rfc8 {[%emt 0:00:30]} 13. b3 {[%emt 0:00:30] White has an edge.} Qd8 {[%emt 0:00:30][%cal Od6d5]} 14. O-O {[%emt 0:00:30]} Nd7 {[%emt 0:00:30][%cal Ob7b5]} 15. Rac1 {[%emt 0:00:30]} a6 {[%emt 0:00:30] [#]} 16. Nd5 $146 {[%emt 0:00:30]} ({Predecessor:} 16. Bg5 Bf6 17. Bh6 Bg7 18. Bxg7 Kxg7 19. f4 Nf6 20. Nd5 e6 21. Nxf6 Qxf6 22. Qxd6 {½-½ (38) Sandipan,C (2588)-Pavlovic,M (2515) Dieren 2008}) 16... Rc6 {[%emt 0:00:30]} 17. Bg5 {[%emt 0:00:30][%cal Be3g5,Bg5h4,Bh4f6][%mdl 32]} Bf8 {[%emt 0:00:30]} (17... Nf6 $14) 18. f4 $16 {[%emt 0:00:30] 0x0.0025b66fe5f0dp-1022s more active pieces. The black rooks are badly placed.} Rac8 {[%emt 0:00:30]} 19. Rcd1 {[%emt 0:00:30]} f6 {[%emt 0:00:30]} 20. Bh4 {[%emt 0:00:30][%cal Oe4e5]} Qa5 $2 {[%emt 0:00:30][%mdl 8192] Black cannot hold the game after this.} (20... e6 $16) 21. Qh3 $18 {[%emt 0:00:30]} Qd8 {[%emt 0:00:30] [#]} 22. e5 $1 {[%emt 0:00:30]} dxe5 {[%emt 0:00:30] [#]} 23. Nxf6+ {[%emt 0:00:30][%mdl 512]} exf6 {[%emt 0:00:30]} (23... Rxf6 24. Bxf6) 24. Rxd7 {[%emt 0:00:30]} Qe8 {[%emt 0:00:30] [#]} 25. Bxf6 $1 {[%emt 0:00:30][%csl Gd7][%cal Rh3h7][%mdl 512]} h6 {[%emt 0:00:30]} (25... Bh6 26. Bg5) 26. fxe5 {[%emt 0:00:30]} b5 {[%emt 0:00:30]} 27. Qd3 {[%emt 0:00:30]} bxc4 {[%emt 0:00:30]} 28. bxc4 {[%emt 0:00:30]} Re6 {[%emt 0:00:30]} 29. h4 {[%emt 0:00:30]} h5 {[%emt 0:00:30]} 30. Rf3 {[%emt 0:00:30] White mates.} Rcc6 {[%emt 0:00:30]} 31. Rd8 {[%emt 0:00:30]} Qf7 {[%emt 0:00:30]} 32. Bg5 {[%emt 0:00:30][%csl LRf7,LRf8] Weighted Error Value: White=0.05 (flawless) /Black=0.84} 1-0

[Event "3rd Gujarat GM Open 2022"]
[Site "Ahmedabad"]
[Date "2022.04.02"]
[Round "3.12"]
[White "Shiva Pavan Teja Sharma U"]
[Black "Abdisalimov, Abdimalik"]
[Result "0-1"]
[ECO "B51"]
[WhiteElo "2022"]
[BlackElo "2435"]
[Annotator "ChessBase"]
[PlyCount "108"]
[EventDate "2022.03.31"]
[EventType "swiss"]
[EventCountry "IND"]
[SourceTitle "playchess.com"]
[Source "ChessBase"]
[SourceQuality "1"]
[TimeControl "5400+30"]

1. e4 {[%emt 1:31:00]} c5 {[%emt 1:31:00]} 2. Nf3 {[%emt 0:00:30]} d6 {[%emt 0:00:30]} 3. Bb5+ {[%emt 0:00:30]} Nd7 {[%emt 0:00:30]} 4. a4 {[%emt 0:00:30]} a6 {[%emt 0:00:30]} 5. Be2 {[%emt 0:00:30]} Ngf6 {[%emt 0:00:30]} 6. Nc3 {[%emt 0:00:30]} b6 {[%emt 0:00:30]} 7. d4 {[%emt 0:00:30]} cxd4 {[%emt 0:00:30]} 8. Qxd4 {[%emt 0:00:30]} Bb7 {[%emt 0:00:30]} 9. O-O {[%emt 0:00:30]} e5 {[%emt 0:00:30]} 10. Qe3 {[%emt 0:00:30]} Be7 {[%emt 0:00:30]} 11. Nd2 {[%emt 0:00:30]} O-O {[%emt 0:00:30]} 12. Rd1 {[%emt 0:00:30]} Qb8 {[%emt 0:00:30]} 13. Nc4 {[%emt 0:00:30]} b5 {[%emt 0:00:30]} 14. Na5 {[%emt 0:00:30]} b4 {[%emt 0:00:30]} 15. Nd5 {[%emt 0:00:30]} Nxd5 {[%emt 0:00:30]} 16. exd5 {[%emt 0:00:30]} Qc7 {[%emt 0:00:30]} 17. Nc4 {[%emt 0:00:30]} a5 {[%emt 0:00:30]} 18. Qg3 {[%emt 0:00:30]} f5 {[%emt 0:00:30]} 19. f4 {[%emt 0:00:30]} Ba6 {[%emt 0:00:30]} 20. b3 {[%emt 0:00:30]} Bf6 {[%emt 0:00:30]} 21. Rb1 {[%emt 0:00:30]} Bxc4 {[%emt 0:00:30]} 22. Bxc4 {[%emt 0:00:30]} Nc5 {[%emt 0:00:30]} 23. Qh3 {[%emt 0:00:30]} Ne4 {[%emt 0:00:30]} 24. Bd3 {[%emt 0:00:30]} Nc3 {[%emt 0:00:30]} 25. Bxf5 {[%emt 0:00:30]} g6 {[%emt 0:00:30]} 26. Be6+ {[%emt 0:00:30]} Kh8 {[%emt 0:00:30]} 27. Be3 {[%emt 0:00:30]} exf4 {[%emt 0:00:30]} 28. Bf2 {[%emt 0:00:30]} Nxb1 {[%emt 0:00:30]} 29. Rxb1 {[%emt 0:00:30]} Qxc2 {[%emt 0:00:30]} 30. Rf1 {[%emt 0:00:30]} Qc3 {[%emt 0:00:30]} 31. Qf3 {[%emt 0:00:30]} Be5 {[%emt 0:00:30]} 32. h3 {[%emt 0:00:30]} Rab8 {[%emt 0:00:30]} 33. Bd7 {[%emt 0:00:30]} Rf7 {[%emt 0:00:30]} 34. Bc6 {[%emt 0:00:30]} Re7 {[%emt 0:00:30]} 35. Re1 {[%emt 0:00:30]} Qxf3 {[%emt 0:00:30]} 36. gxf3 {[%emt 0:00:30]} Bf6 {[%emt 0:00:30]} 37. Rxe7 {[%emt 0:00:30]} Bxe7 {[%emt 0:00:30]} 38. Bd4+ {[%emt 0:00:30]} Kg8 {[%emt 0:00:30]} 39. Kf1 {[%emt 0:00:30]} Rf8 {[%emt 0:00:30]} 40. Bd7 {[%emt 0:00:30]} Bf6 {[%emt 0:00:30]} 41. Bb6 {[%emt 0:00:30]} Bd8 {[%emt 0:00:30]} 42. Bd4 {[%emt 0:00:30]} h6 {[%emt 0:00:30]} 43. Ke2 {[%emt 0:00:30]} Kh7 {[%emt 0:00:30]} 44. Kd3 {[%emt 0:00:30]} Rf7 {[%emt 0:00:30]} 45. Bc6 {[%emt 0:00:30]} Re7 {[%emt 0:00:30]} 46. Kd2 {[%emt 0:00:30]} Bc7 {[%emt 0:00:30]} 47. Bb7 {[%emt 0:00:30]} Bb8 {[%emt 0:00:30]} 48. Bc6 {[%emt 0:00:30]} Ba7 {[%emt 0:00:30]} 49. Bxa7 {[%emt 0:00:30]} Rxa7 {[%emt 0:00:30]} 50. Kd3 {[%emt 0:00:30]} Re7 {[%emt 0:00:30]} 51. Kc4 {[%emt 0:00:30]} Re3 {[%emt 0:00:30]} 52. Kb5 {[%emt 0:00:30]} Rxf3 {[%emt 0:00:30]} 53. Kxa5 {[%emt 0:00:30]} Rxb3 {[%emt 0:00:30]} 54. Kb5 {[%emt 0:00:30]} f3 {[%emt 0:00:30]} 0-1

[Event "3rd Gujarat GM Open 2022"]
[Site "Ahmedabad"]
[Date "2022.04.02"]
[Round "3.13"]
[White "Gaikwad, Siddhant"]
[Black "Nitin, S.."]
[Result "0-1"]
[ECO "B80"]
[WhiteElo "2016"]
[BlackElo "2427"]
[Annotator "TA"]
[PlyCount "80"]
[EventDate "2022.03.31"]
[EventType "swiss"]
[EventCountry "IND"]
[SourceTitle "playchess.com"]
[Source "ChessBase"]
[SourceQuality "1"]
[TimeControl "5400+30"]

{[%evp 17,80,0,52,0,0,0,35,12,7,0,3,0,0,-14,-10,-67,-68,-71,-34,-75,-72,-72,-67,-71,-69,-164,-157,-156,-160,-153,-149,-176,-138,-314,-319,-312,-163,-208,-148,-218,-229,-239,-235,-242,-236,-234,-228,-244,-245,-240,-235,-231,-225,-273,-260,-375,-373,-382,-363,-679,-659,-670,-655,-617,-637]} 1. e4 {[%emt 0:00:04]} c5 {[%emt 0:03:32]} 2. Nf3 {[%emt 0:00:06]} d6 {[%emt 0:00:40]} 3. d4 {[%emt 0:00:04]} cxd4 {[%emt 0:00:06]} 4. Nxd4 {[%emt 0:00:04]} Nf6 {[%emt 0:01:04]} 5. Nc3 {[%emt 0:00:04]} e6 {[%emt 0:00:05]} 6. Be3 {[%emt 0:01:26]} a6 {[%emt 0:00:07]} 7. f3 {[%emt 0:00:04]} b5 {[%emt 0:00:04]} 8. Qd2 {[%emt 0:00:05]} Nbd7 {[%emt 0:01:12]} 9. g4 {[%emt 0:00:17]} Nb6 {[%emt 0:00:18]} ({Black should play} 9... b4 $11 10. Nce2 h6) 10. Bd3 {[%emt 0:02:59] B80: Sicilian Scheveningen: 6 g3 and 6 Be3, including English Attack.} (10. a4 $14 Nc4 11. Bxc4 bxc4 12. h4) 10... Bb7 $11 {[%emt 0:01:12]} 11. O-O-O {[%emt 0:01:29]} Be7 {[%emt 0:00:24]} 12. Kb1 {[%emt 0:00:14] White is slightly better.} (12. g5 $5 {[%cal Rg5f6]} Nfd7 13. Nb3 $11) 12... Rc8 {[%emt 0:00:27] [#]} 13. Nce2 $146 {[%emt 0:00:41] White wants to play Nf4.} ({Predecessor:} 13. h4 Nfd7 14. Nce2 Ne5 15. Qe1 O-O 16. g5 d5 17. Ng3 Qc7 18. h5 Nbc4 19. Bc1 Bc5 {1-0 (43) Kaidanov,G (2577)-Ehlvest,J (2591) Saint Louis 2010}) 13... Nfd7 {[%emt 0:00:50][%cal Bf6d7,Bd7c5,Bc5a4,Ba4b6,Bb6c4][%mdl 32]} 14. Nf4 {[%emt 0:23:16]} Nc5 {[%emt 0:03:17]} 15. Nb3 {[%emt 0:02:35]} Nca4 {[%emt 0:02:32]} 16. Qa5 {[%emt 0:14:51]} (16. Bd4 $11) 16... O-O $15 {[%emt 0:12:27]} 17. Rhg1 {[%emt 0:18:41][%cal Og4g5]} Bg5 {[%emt 0:02:28][%cal Od8f6]} 18. Bxb6 {[%emt 0:06:00]} Nxb6 {[%emt 0:00:57]} 19. Ne2 {[%emt 0:00:47]} Be3 {[%emt 0:01:45]} 20. Rgf1 {[%emt 0:00:36]} Qf6 {[%emt 0:01:22]} 21. g5 {[%emt 0:01:40]} (21. Qe1 $1 $15) 21... Qxg5 $19 {[%emt 0:03:17]} 22. f4 {[%emt 0:01:44]} Qf6 {[%emt 0:00:31][%cal Ob7e4] aiming for ...Bxe4! &Nero is much more active.} 23. Qe1 {[%emt 0:00:27]} Nc4 $40 {[%emt 0:07:29][%csl Gc4][%cal Rf6b2][%mdl 128] [#] Black wants a kill.} 24. c3 {[%emt 0:02:01]} b4 {[%emt 0:07:18]} 25. e5 $2 {[%emt 0:03:22] Loses the game.} (25. Qg3 $17 Bb6 26. Bxc4 Rxc4 27. Nd2 Bxe4+ 28. Ka1) 25... dxe5 {[%emt 0:00:25]} 26. fxe5 {[%emt 0:00:07]} Qh6 {[%emt 0:01:57]} ({But not} 26... Qxe5 $2 27. Qh4 Bh6 28. Rg1 $19) (26... Qg5 $142 {Hoping for ...Bg2.} 27. cxb4 Nxe5) 27. Qg3 {[%emt 0:01:56]} Qg5 {[%emt 0:06:31] The board is on fire.} 28. Qxg5 {[%emt 0:08:42]} (28. cxb4 $17 Nxe5 29. Nc3) 28... Bxg5 {[%emt 0:00:09]} 29. Bxc4 {[%emt 0:00:08]} Rxc4 {[%emt 0:00:08]} 30. Na5 {[%emt 0:00:16]} Be4+ {[%emt 0:00:29]} 31. Ka1 {[%emt 0:00:03]} Rc5 {[%emt 0:00:20][%csl LRa5,LRe5][%cal Bc4c5,Bc5e5,Be5e3,Be3h3][%mdl 32]} 32. cxb4 {[%emt 0:00:06]} Rxe5 {[%emt 0:00:27]} 33. Nc3 {[%emt 0:00:15] [#] Strongly threatening Nc4.} Bc2 {[%emt 0:01:24] This bishop pair is nice.} 34. Rd7 {[%emt 0:00:51]} Re3 {[%emt 0:02:59]} 35. Nc4 {[%emt 0:01:27]} Rh3 {[%emt 0:02:08]} 36. Nd6 {[%emt 0:02:36]} (36. Ne5 $142) 36... f5 {[%emt 0:01:07][%cal Bf7f5,Bf5f4,Bf4f3][%mdl 32] And now ...Rd3 would win.} 37. Rf2 {[%emt 0:01:50]} Bd3 {[%emt 0:00:07]} 38. Na4 $2 {[%emt 0:00:13]} (38. a4) 38... Re3 {[%emt 0:01:32][%cal Re3e1] Black is clearly winning.} 39. a3 {[%emt 0:00:15]} f4 {[%emt 0:01:08] ...Bh4 is the strong threat.} 40. Nc5 {[%emt 0:00:20]} f3 {[%emt 0:00:58] Weighted Error Value: White=0.38/Black=0.16 (very precise)} 0-1

[Event "3rd Gujarat GM Open 2022"]
[Site "Ahmedabad"]
[Date "2022.04.02"]
[Round "3.14"]
[White "Hesham, Abdelrahman"]
[Black "Weerawardane, Romesh"]
[Result "1-0"]
[ECO "D32"]
[WhiteElo "2425"]
[BlackElo "2005"]
[Annotator "TA"]
[PlyCount "112"]
[EventDate "2022.03.31"]
[EventType "swiss"]
[EventCountry "IND"]
[SourceTitle "playchess.com"]
[Source "ChessBase"]
[SourceQuality "1"]
[TimeControl "5400+30"]

{[%evp 21,112,30,30,29,51,36,25,30,43,25,32,34,39,31,37,37,41,38,39,38,44,41,72,31,31,31,22,15,14,10,10,14,37,19,37,25,37,28,39,29,32,21,18,27,131,28,37,35,58,22,27,7,62,61,67,58,73,86,89,86,83,68,72,79,87,68,376,381,348,329,385,322,321,271,371,372,366,337,340,316,544,512,766,745,1712,1679,1671,1677,2083,1974,2231,1830,1485]} 1. Nf3 {[%emt 1:31:00]} Nf6 {[%emt 1:31:00]} 2. c4 {[%emt 0:00:30]} e6 {[%emt 0:00:30]} 3. e3 {[%emt 0:00:30]} d5 {[%emt 0:00:30]} 4. b3 {[%emt 0:00:30]} Be7 {[%emt 0:00:30]} 5. Bb2 {[%emt 0:00:30]} c5 {[%emt 0:00:30]} 6. cxd5 {[%emt 0:00:30]} exd5 {[%emt 0:00:30]} 7. Be2 {[%emt 0:00:30]} O-O {[%emt 0:00:30]} 8. O-O {[%emt 0:00:30]} Nc6 {[%emt 0:00:30]} 9. d4 {[%emt 0:00:30]} Ne4 {[%emt 0:00:30]} 10. dxc5 {[%emt 0:00:30]} Bxc5 {[%emt 0:00:30]} 11. Nc3 {[%emt 0:00:30]} Be6 {[%emt 0:00:30]} 12. Rc1 {[%emt 0:00:30] D32: Tarrasch Defence: Sidelines and lines without g3.} Bb6 {[%emt 0:00:30]} 13. Nb5 {[%emt 0:00:30] [#]} Rc8 $146 {[%emt 0:00:30]} ({Predecessor:} 13... Ne7 14. Nbd4 Bd7 15. Qd3 Ng6 16. b4 Re8 17. h3 Qe7 18. Qb3 Rad8 19. a4 Bc8 20. Rxc8 Rxc8 {1-0 (62) Szustakowski,A (2238)-Suliborski,J (2120) Krakow 2020}) 14. Nbd4 {[%emt 0:00:30] White has an edge.} Nxd4 {[%emt 0:00:30]} 15. Bxd4 {[%emt 0:00:30]} (15. Nxd4 {seems wilder.} Qg5 16. Qd3 Bd7 17. Bf3) 15... Rxc1 {[%emt 0:00:30]} 16. Qxc1 {[%emt 0:00:30]} Bxd4 {[%emt 0:00:30]} 17. Nxd4 {[%emt 0:00:30]} Qa5 {[%emt 0:00:30]} 18. Qb2 {[%emt 0:00:30]} Rc8 {[%emt 0:00:30]} 19. Bd3 {[%emt 0:00:30]} Qc3 {[%emt 0:00:30]} 20. Qxc3 {[%emt 0:00:30]} Rxc3 {[%emt 0:00:30]} 21. Rd1 {[%emt 0:00:30]} Kf8 {[%emt 0:00:30]} 22. Kf1 {[%emt 0:00:30]} Ke7 {[%emt 0:00:30]} 23. f3 {[%emt 0:00:30]} Nc5 {[%emt 0:00:30]} 24. Ke2 {[%emt 0:00:30]} Nxd3 {[%emt 0:00:30]} 25. Rxd3 $11 {[%emt 0:00:30][%mdl 4096] Endgame KRB-KRN} Rc1 {[%emt 0:00:30]} 26. Rd1 {[%emt 0:00:30]} Rc5 {[%emt 0:00:30]} 27. Kd2 {[%emt 0:00:30]} Ra5 {[%emt 0:00:30]} 28. Ra1 {[%emt 0:00:30]} Bd7 {[%emt 0:00:30]} 29. Kc3 {[%emt 0:00:30]} Kd6 {[%emt 0:00:30]} 30. Kb2 {[%emt 0:00:30]} Rc5 {[%emt 0:00:30]} 31. Rd1 {[%emt 0:00:30]} Ke5 {[%emt 0:00:30]} 32. Ne2 {[%emt 0:00:30]} b5 {[%emt 0:00:30]} (32... g5 $11) 33. Rd4 {[%emt 0:00:30]} (33. Nf4 $16) 33... a5 {[%emt 0:00:30]} 34. a3 {[%emt 0:00:30]} Rc7 {[%emt 0:00:30]} 35. Rd2 {[%emt 0:00:30]} g5 {[%emt 0:00:30]} 36. Rd3 {[%emt 0:00:30]} Bf5 {[%emt 0:00:30]} (36... b4 $11) 37. Rc3 $14 {[%emt 0:00:30]} Rxc3 {[%emt 0:00:30]} 38. Kxc3 {[%emt 0:00:30] KB-KN} Bd7 {[%emt 0:00:30]} 39. b4 {[%emt 0:00:30]} a4 {[%emt 0:00:30]} 40. Kd3 {[%emt 0:00:30] Hoping for f4+.} Bf5+ {[%emt 0:00:30] [#]} 41. Kd2 $1 {[%emt 0:00:30]} Bd7 {[%emt 0:00:30]} 42. Kc3 {[%emt 0:00:30]} f5 {[%emt 0:00:30]} 43. Nc1 {[%emt 0:00:30] Nd3+ is the strong threat.} h5 $2 {[%emt 0:00:30][%mdl 8192] Loses the game.} ({Better is} 43... d4+ $1 $14 44. exd4+ Kd6) 44. Nd3+ $18 {[%emt 0:00:30]} Kd6 {[%emt 0:00:30]} 45. Kd4 {[%emt 0:00:30]} h4 {[%emt 0:00:30]} 46. Nc1 {[%emt 0:00:30]} Be8 {[%emt 0:00:30]} 47. Ne2 {[%emt 0:00:30]} Bd7 {[%emt 0:00:30]} 48. Nc3 {[%emt 0:00:30]} Bc6 {[%emt 0:00:30]} 49. h3 {[%emt 0:00:30] Prevents g4.} Bd7 {[%emt 0:00:30]} 50. Nxd5 {[%emt 0:00:30]} Be6 $2 {[%emt 0:00:30] [#]} (50... Bc6 51. e4 fxe4 52. fxe4 Ke6) 51. e4 {[%emt 0:00:30][%cal Be3e4,Be4e5][%mdl 32] White is clearly winning.} f4 {[%emt 0:00:30]} 52. e5+ {[%emt 0:00:30]} Kc6 {[%emt 0:00:30]} 53. Nf6 {[%emt 0:00:30]} Bc4 {[%emt 0:00:30]} 54. Ne4 {[%emt 0:00:30]} Bf1 {[%emt 0:00:30]} 55. Nxg5 {[%emt 0:00:30]} Bxg2 {[%emt 0:00:30]} 56. Ke4 {[%emt 0:00:30]} Bf1 {[%emt 0:00:30] Weighted Error Value: White=0.11 (very precise) /Black=0.36} 1-0

[Event "3rd Gujarat GM Open 2022"]
[Site "Ahmedabad"]
[Date "2022.04.02"]
[Round "3.15"]
[White "Bhattacharyya Soham"]
[Black "Mehar, Chinna Reddy C.H."]
[Result "1-0"]
[ECO "D11"]
[WhiteElo "2004"]
[BlackElo "2422"]
[Annotator "ChessBase"]
[PlyCount "99"]
[EventDate "2022.03.31"]
[EventType "swiss"]
[EventCountry "IND"]
[SourceTitle "playchess.com"]
[Source "ChessBase"]
[SourceQuality "1"]
[TimeControl "5400+30"]

1. d4 {[%emt 0:00:15]} d5 {[%emt 0:12:08]} 2. c4 {[%emt 0:00:30]} c6 {[%emt 0:00:06]} 3. Nf3 {[%emt 0:00:11]} Nf6 {[%emt 0:00:07]} 4. Qc2 {[%emt 0:01:13]} g6 {[%emt 0:03:03]} 5. Nc3 {[%emt 0:02:26]} Bg7 {[%emt 0:00:05]} 6. cxd5 {[%emt 0:01:52]} cxd5 {[%emt 0:00:46]} 7. Bf4 {[%emt 0:00:10]} Nc6 {[%emt 0:01:09]} 8. e3 {[%emt 0:00:54]} O-O {[%emt 0:00:10]} 9. h3 {[%emt 0:01:16]} Qb6 {[%emt 0:11:58]} 10. Qb3 {[%emt 0:05:42]} Qxb3 {[%emt 0:06:34]} 11. axb3 {[%emt 0:00:26]} Bd7 {[%emt 0:03:04]} 12. Bb5 {[%emt 0:08:03]} Nb4 {[%emt 0:00:48]} 13. Ra4 {[%emt 0:05:09]} Bxb5 {[%emt 0:02:49]} 14. Rxb4 {[%emt 0:01:01]} Ba6 {[%emt 0:00:12]} 15. Be5 {[%emt 0:09:00]} Ne4 {[%emt 0:12:44]} 16. Bxg7 {[%emt 0:12:41]} Kxg7 {[%emt 0:01:02]} 17. Nd2 {[%emt 0:00:08]} Nxc3 {[%emt 0:07:11]} 18. bxc3 {[%emt 0:00:06]} Bd3 {[%emt 0:01:01]} 19. Rxb7 {[%emt 0:02:09]} Rfc8 {[%emt 0:00:56]} 20. c4 {[%emt 0:08:52]} dxc4 {[%emt 0:00:05]} 21. Nxc4 {[%emt 0:00:06]} Be4 {[%emt 0:08:58]} 22. Rxe7 {[%emt 0:01:07]} Bxg2 {[%emt 0:00:04]} 23. Rg1 {[%emt 0:01:47]} Bxh3 {[%emt 0:02:48]} 24. Kd2 {[%emt 0:01:04]} Be6 {[%emt 0:07:21]} 25. Kc3 {[%emt 0:08:23]} Kf6 {[%emt 0:02:16]} 26. Rb7 {[%emt 0:00:05]} Bd5 {[%emt 0:01:03]} 27. Rb5 {[%emt 0:00:14]} Bc6 {[%emt 0:03:11]} 28. Rc5 {[%emt 0:00:36]} Bd7 {[%emt 0:01:45]} 29. b4 {[%emt 0:02:44]} h5 {[%emt 0:01:14]} 30. d5 {[%emt 0:07:03]} h4 {[%emt 0:03:21]} 31. Nd6 {[%emt 0:07:50]} Rh8 {[%emt 0:00:05]} 32. Ne4+ {[%emt 0:01:09]} Kg7 {[%emt 0:01:38]} 33. Rc7 {[%emt 0:03:27]} Rac8 {[%emt 0:00:20]} 34. Rxc8 {[%emt 0:00:05]} Rxc8+ {[%emt 0:00:03]} 35. Nc5 {[%emt 0:00:42]} h3 {[%emt 0:01:34]} 36. Kd4 {[%emt 0:00:25]} Bb5 {[%emt 0:01:11]} 37. Rh1 {[%emt 0:00:51]} Rh8 {[%emt 0:00:08]} 38. Rh2 {[%emt 0:01:51]} Kf6 {[%emt 0:01:51]} 39. d6 {[%emt 0:02:58]} Bc6 {[%emt 0:00:04]} 40. e4 {[%emt 0:00:30]} Kg5 {[%emt 0:02:09]} 41. Nd3 {[%emt 0:01:07]} f6 {[%emt 0:01:24]} 42. e5 {[%emt 0:01:29]} Kf5 {[%emt 0:00:32]} 43. f4 {[%emt 0:00:59]} fxe5+ {[%emt 0:02:12]} 44. fxe5 {[%emt 0:00:07]} g5 {[%emt 0:00:10]} 45. Rf2+ {[%emt 0:01:02]} Kg6 {[%emt 0:00:48]} 46. e6 {[%emt 0:01:50]} g4 {[%emt 0:00:48]} 47. Ne5+ {[%emt 0:00:36]} Kh5 {[%emt 0:00:26]} 48. Rf5+ {[%emt 0:01:01]} Kh4 {[%emt 0:00:07]} 49. Ng6+ {[%emt 0:00:11]} Kg3 {[%emt 0:00:12]} 50. Nxh8 {[%emt 0:00:05]} 1-0

[Event "3rd Gujarat GM Open 2022"]
[Site "Ahmedabad"]
[Date "2022.04.02"]
[Round "3.16"]
[White "Audi Ameya"]
[Black "Ilamparthi A R"]
[Result "0-1"]
[ECO "B90"]
[WhiteElo "2418"]
[BlackElo "1969"]
[Annotator "TA"]
[PlyCount "90"]
[EventDate "2022.03.31"]
[EventType "swiss"]
[EventCountry "IND"]
[SourceTitle "playchess.com"]
[Source "ChessBase"]
[SourceQuality "1"]
[TimeControl "5400+30"]

{[%evp 10,90,20,10,37,8,25,0,16,10,10,0,41,27,51,44,38,34,32,0,0,0,0,-55,-60,-86,-90,-77,-91,-95,-92,-100,-75,-156,-139,-145,-129,-106,-125,-201,-209,-222,-225,-239,-229,-245,-235,-247,-200,-210,-192,-187,-180,-233,-171,-308,-299,-299,-280,-302,-300,-311,-280,-262,-239,-2544,-2544,-29994,-29995,-29996,-29997,-29997,-29995,-29997,-29995,-29995,-29996,-29996,-29995,-29997,-29994,-29995,-1245]} 1. e4 {[%emt 0:00:01]} c5 {[%emt 0:00:06]} 2. Nf3 {[%emt 0:00:04]} d6 {[%emt 0:00:05]} 3. d4 {[%emt 0:00:02]} cxd4 {[%emt 0:00:05]} 4. Nxd4 {[%emt 0:00:02]} Nf6 {[%emt 0:00:08]} 5. Nc3 {[%emt 0:00:03]} a6 {[%emt 0:00:05]} 6. f3 {[%emt 0:00:05]} b5 {[%emt 0:01:06][%cal Bb7b5,Bb5b4][%mdl 32] B90: Sicilian Najdorf: Unusual White 6th moves, 6 Be3 Ng4 and 6 Be3 e5.} 7. a4 {[%emt 0:02:04]} b4 {[%emt 0:00:57]} 8. Nd5 {[%emt 0:00:03]} Nxd5 {[%emt 0:07:30] The position is equal.} 9. exd5 {[%emt 0:00:04]} Bb7 {[%emt 0:00:12]} 10. Bc4 {[%emt 0:02:55]} Nd7 {[%emt 0:02:54]} 11. a5 {[%emt 0:05:14]} (11. Qe2 {feels hotter.} g6 12. Bg5 Nb6 13. O-O-O) 11... Nf6 {[%emt 0:11:34]} 12. Bb3 {[%emt 0:12:07] Strongly threatening Ba4+.} Bxd5 {[%emt 0:09:19]} 13. Ba4+ {[%emt 0:00:58]} Nd7 {[%emt 0:00:39] [#]} 14. Nc6 $146 {[%emt 0:01:00]} ({Predecessor:} 14. Bd2 e6 15. Bxb4 Be7 16. O-O Rb8 17. c3 O-O 18. Bc6 Bc4 19. Re1 Qc7 20. b3 {½-½ (31) Zontakh,A (2545)-Nechepurenko,R (2430) Moscow 2006}) 14... Bxc6 {[%emt 0:00:13]} 15. Bxc6 {[%emt 1:13:18]} Rc8 {[%emt 0:01:29]} 16. Ba4 {[%emt 0:00:00]} (16. Bb7 $1 $11) 16... e6 $15 {[%emt 0:01:29]} 17. Be3 {[%emt 0:00:00]} d5 $1 {[%emt 0:02:03]} 18. Bb6 {[%emt 0:00:00]} Qh4+ {[%emt 0:03:47]} 19. g3 {[%emt 0:00:00]} Qc4 {[%emt 0:00:51]} 20. Bb3 {[%emt 0:00:00] [#]} Qc6 {[%emt 0:00:38]} 21. Qd3 {[%emt 0:00:00] [#]} ({Better is} 21. Ba4 Qd6 22. Bd4) 21... Bc5 $1 $17 {[%emt 0:03:34]} (21... Nxb6 22. axb6 Qxb6 23. Rxa6 $17) 22. Ba4 {[%emt 0:00:00]} Qb7 {[%emt 0:00:21]} 23. Bxc5 {[%emt 0:00:00]} Rxc5 {[%emt 0:00:03]} 24. Qd4 {[%emt 0:00:00]} (24. O-O $17) 24... O-O $19 {[%emt 0:00:54]} 25. Bxd7 {[%emt 0:00:00]} Rc4 {[%emt 0:00:06]} 26. Qb6 {[%emt 0:00:00]} Qxd7 {[%emt 0:00:05]} 27. Qxa6 {[%emt 0:00:00]} Rxc2 {[%emt 0:00:11]} 28. Qb6 {[%emt 0:00:00]} Rc6 {[%emt 0:10:06]} ({But not} 28... Rxb2 $2 29. O-O) 29. Qf2 {[%emt 0:00:00]} Rfc8 {[%emt 0:01:35] ...Rc1+ is the strong threat.} 30. O-O {[%emt 0:00:00]} Qb7 {[%emt 0:04:46]} 31. b3 {[%emt 0:00:00]} (31. Qe3 $142) 31... Rc2 {[%emt 0:00:57]} 32. Qd4 {[%emt 0:00:00]} (32. Qb6 $142 Qe7 33. Rf2) 32... Qa6 {[%emt 0:02:11]} 33. Rf2 {[%emt 0:00:00]} h6 {[%emt 0:05:31]} ({Worse is} 33... Rc1+ 34. Kg2 $17) 34. f4 {[%emt 0:00:00]} g6 {[%emt 0:04:42]} ({Not} 34... Rc1+ 35. Kg2 $19) 35. Kg2 {[%emt 0:00:00]} Rxf2+ {[%emt 0:03:11]} 36. Qxf2 {[%emt 0:00:00][%mdl 4096] Endgame KQR-KQR} Rc3 {[%emt 0:00:08]} 37. Qb6 $2 {[%emt 0:02:31]} (37. Qf1 Rc2+ 38. Kh3 Qxf1+ 39. Rxf1) 37... Rc2+ {[%emt 0:00:55]} 38. Kh3 {[%emt 0:07:08]} Qe2 {[%emt 0:00:08][%cal Re2h5] Black mates.} 39. Qd8+ {[%emt 0:00:07]} Kh7 {[%emt 0:00:08]} 40. Rh1 {[%emt 0:02:44]} Qg2+ {[%emt 0:00:05]} 41. Kg4 {[%emt 0:00:00]} Qxh1 {[%emt 0:00:06]} 42. Qf6 {[%emt 0:00:00]} Qd1+ {[%emt 0:00:07]} 43. Kh3 {[%emt 0:00:00]} Qh5+ {[%emt 0:00:05]} 44. Qh4 {[%emt 0:00:00]} Qf5+ {[%emt 0:00:06]} 45. Qg4 {[%emt 0:00:00]} Rxh2+ {[%emt 0:00:06] Weighted Error Value: White=0.50/Black=0.08 (flawless)} 0-1